fUST/lending_fUST_20250715
["ID","MTS","AMOUNT","RATE_DAILY","PERIOD"]
[372333997,1752593432617,-180.653974,0.00020166,2]
[372333999,1752593432627,-300.0,0.00021162,2]
[372334000,1752593432637,-300.0,0.00021162,2]
[372334001,1752593432646,-161.38272105,0.00021163,2]
[372334002,1752593432656,-460.0,0.00021163,2]
[372334004,1752593432666,-460.0,0.00021163,2]
[372334005,1752593432675,-991.86,0.00021163,2]
[372334008,1752593432685,-947.55633295,0.00021163,2]
[372334052,1752593443513,-460.0,0.00020893,2]
[372334053,1752593443523,-159.32366705,0.00021163,2]
[372334054,1752593443533,-180.67633295,0.00021163,2]
[372334070,1752593446481,-279.32366705,0.00021163,2]
[372334071,1752593446491,-460.0,0.00021163,2]
[372334072,1752593446501,-460.0,0.00021163,2]
[372334073,1752593446511,-460.0,0.00021163,2]
[372334074,1752593446521,-460.0,0.00021163,2]
[372334075,1752593446531,-460.0,0.00021163,2]
[372334076,1752593446541,-460.0,0.00021163,2]
[372334077,1752593446551,-460.0,0.00021163,2]
[372334078,1752593446563,-460.0,0.00021163,2]
[372334079,1752593446574,-572.38,0.00021163,2]
[372334080,1752593446584,-460.0,0.00021164,2]
[372334081,1752593446593,-460.0,0.00021164,2]
[372334082,1752593446603,-460.0,0.00021164,2]
[372334083,1752593446612,-504.19638153,0.00021164,2]
[372334084,1752593446622,-460.0,0.00021164,2]
[372334085,1752593446632,-151.94212141,0.00021164,2]
[372334086,1752593446648,-308.05787859,0.00021164,2]
[372334087,1752593446657,-460.0,0.00021164,2]
[372334088,1752593446667,-201.36679741,0.00021164,2]
[372334089,1752593446678,-258.63320259,0.00021164,2]
[372334090,1752593446688,-536.64129561,0.00021164,2]
[372334091,1752593446697,-460.0,0.00021164,2]
[372334092,1752593446709,-460.0,0.00021164,2]
[372334093,1752593446718,-460.0,0.00021164,2]
[372334094,1752593446728,-197.0072821,0.00021164,2]
[372334096,1752593446737,-460.0,0.00021164,2]
[372334098,1752593446747,-460.0,0.00021164,2]
[372334100,1752593446757,-460.0,0.00021164,2]
[372334101,1752593446766,-460.0,0.00021164,2]
[372334102,1752593446777,-460.0,0.00021164,2]
[372334103,1752593446787,-460.0,0.00021164,2]
[372334104,1752593446797,-460.0,0.00021164,2]
[372334105,1752593446807,-460.0,0.00021164,2]
[372334106,1752593446817,-460.0,0.00021165,2]
[372334107,1752593446827,-460.0,0.00021165,2]
[372334108,1752593446836,-460.0,0.00021165,2]
[372334109,1752593446847,-500.0,0.00021165,2]
[372334110,1752593446856,-460.0,0.00021165,2]
[372334111,1752593446866,-460.0,0.00021165,2]
[372334112,1752593446876,-460.0,0.00021165,2]
[372334113,1752593446887,-460.0,0.00021165,2]
[372334114,1752593446897,-460.0,0.00021165,2]
[372334115,1752593446907,-460.0,0.00021165,2]
[372334116,1752593446917,-460.0,0.00021165,2]
[372334117,1752593446927,-460.0,0.00021165,2]
[372334118,1752593446937,-460.0,0.00021165,2]
[372334119,1752593446947,-460.0,0.00021165,2]
[372334120,1752593446957,-460.0,0.00021165,2]
[372334121,1752593446967,-460.0,0.00021165,2]
[372334122,1752593446977,-460.0,0.00021165,2]
[372334123,1752593446990,-460.0,0.00021165,2]
[372334124,1752593447000,-387.448,0.00021165,2]
[372334125,1752593447010,-178.232,0.00021165,2]
[372334126,1752593447020,-460.0,0.00021165,2]
[372334127,1752593447030,-460.0,0.00021165,2]
[372334128,1752593447040,-425.20520187,0.00021165,2]
[372334129,1752593447049,-460.0,0.00021165,2]
[372334130,1752593447062,-460.0,0.00021165,2]
[372334131,1752593447071,-460.0,0.00021165,2]
[372334132,1752593447081,-255.05494147,0.00021165,2]
[372334133,1752593447091,-460.0,0.00021165,2]
[372334134,1752593447101,-460.0,0.00021165,2]
[372334135,1752593447110,-460.0,0.00021165,2]
[372334136,1752593447120,-460.0,0.00021165,2]
[372334137,1752593447130,-460.0,0.00021165,2]
[372334138,1752593447140,-460.0,0.00021165,2]
[372334139,1752593447150,-460.0,0.00021165,2]
[372334140,1752593447160,-460.0,0.00021165,2]
[372334141,1752593447170,-460.0,0.00021165,2]
[372334142,1752593447180,-460.0,0.00021165,2]
[372334143,1752593447189,-460.0,0.00021165,2]
[372334144,1752593447199,-460.0,0.00021165,2]
[372334145,1752593447208,-460.0,0.00021165,2]
[372334146,1752593447218,-460.0,0.00021165,2]
[372334147,1752593447228,-34.32882939,0.00021165,2]
[372334153,1752593683903,48999.9936,0.00025393,120]
[372334154,1752593706349,-157.51625854,0.00019,2]
[372334155,1752593894119,-157.51717486,0.00018246,2]
[372334159,1752594065782,500.0,0.00022986,30]
[372334160,1752594082293,2413.18167969,0.000181,2]
[372334161,1752594082316,2586.81832031,0.000181,2]
[372334163,1752594098725,5000.0,0.000181,2]
[372334165,1752594115830,3988.23887969,0.000181,2]
[372334166,1752594115855,1011.76112031,0.000181,2]
[372334168,1752594133164,5000.0,0.000181,2]
[372334169,1752594151801,5000.0,0.000181,2]
[372334170,1752594167188,563.29607969,0.000181,2]
[372334171,1752594167213,4436.70392031,0.000181,2]
[372334176,1752594336375,-276.45890642,0.00018246,2]
[372334177,1752594336398,-161.049161,0.0001843,2]
[372334178,1752594336418,-1785.95932491,0.00019,2]
[372334179,1752594336439,-195.96598436,0.0001934,2]
[372334180,1752594336480,-1969.91132188,0.00019938,2]
[372334182,1752594352085,-1063.06044652,0.00019938,2]
[372334183,1752594352106,-303.2193251,0.0002007,2]
[372334184,1752594352129,-215.50840239,0.00020864,2]
[372334185,1752594352152,-230.76969291,0.00020867,2]
[372334186,1752594352173,-7.4427205,0.0002089,2]
[372334195,1752594432089,-1200.0,0.00020092,2]
[372334196,1752594432113,-300.0,0.00020092,2]
[372334197,1752594432139,-4470.20372438,0.00020093,2]
[372334199,1752594445105,-14762.91016663,0.00020093,2]
[372334200,1752594451213,-1562.49413804,0.00020093,2]
[372334201,1752594454553,160.238894,0.00013699,2]
[372334211,1752594557103,-190.95752691,0.00020093,2]
[372334212,1752594557127,-593.95,0.00020093,2]
[372334213,1752594557150,-460.0,0.00020093,2]
[372334214,1752594557172,-460.0,0.00020093,2]
[372334215,1752594557195,-3087.31676711,0.00020093,2]
[372334229,1752594632561,-1046.102,0.00019993,2]
[372334237,1752594632702,-258.40338754,0.00019993,2]
[372334239,1752594632712,-460.0,0.00020093,2]
[372334257,1752594632869,-460.0,0.00020093,2]
[372334259,1752594632879,-1017.07520384,0.00020093,2]
[372334261,1752594632889,-250.01,0.00020367,2]
[372334262,1752594632899,-460.0,0.00020367,2]
[372334264,1752594632908,-460.0,0.00020367,2]
[372334266,1752594632918,-100.59286708,0.00020641,2]
[372334269,1752594632932,-359.40713292,0.00020641,2]
[372334270,1752594632941,-261.53057848,0.00020793,2]
[372334272,1752594632951,-838.84061749,0.00020864,2]
[372334274,1752594632960,-160.0,0.00020864,2]
[372334276,1752594632969,-160.0,0.00020867,2]
[372334278,1752594632978,-1200.0,0.0002089,2]
[372334280,1752594632988,-300.0,0.00020891,2]
[372334282,1752594632997,-290.0,0.00020891,2]
[372334284,1752594633006,-300.0,0.00020891,2]
[372334286,1752594633017,-210.86864249,0.00020891,2]
[372334310,1752594639753,-313.74146413,0.00020093,2]
[372334311,1752594639767,-146.25853587,0.00020093,2]
[372334312,1752594639779,-514.44,0.00020367,2]
[372334313,1752594639789,-89.13135751,0.00020891,2]
[372334314,1752594639798,-8998.05349,0.00020892,2]
[372334315,1752594639811,-504.32018305,0.00020892,2]
[372334316,1752594639882,-2557.0724203,0.00020892,2]
[372334317,1752594639892,-460.0,0.00020893,2]
[372334318,1752594639902,-460.0,0.00020893,2]
[372334319,1752594639912,-460.0,0.00020893,2]
[372334320,1752594639922,-460.0,0.00020893,2]
[372334321,1752594639932,-460.0,0.00020893,2]
[372334322,1752594639941,-460.0,0.00020893,2]
[372334323,1752594639951,-364.08,0.00020893,2]
[372334324,1752594639960,-460.0,0.00020893,2]
[372334325,1752594639970,-583.30112813,0.00020893,2]
[372334326,1752594639980,-460.0,0.00020893,2]
[372334327,1752594639990,-460.0,0.00020915,2]
[372334328,1752594639999,-525.51022752,0.00021128,2]
[372334329,1752594640009,-160.0,0.00021129,2]
[372334331,1752594640019,-160.0,0.00021129,2]
[372334332,1752594640032,-468.75,0.00021131,2]
[372334334,1752594640042,-160.0,0.00021148,2]
[372334336,1752594640051,-160.0,0.00021148,2]
[372334338,1752594640061,-525.51022752,0.00021148,2]
[372334339,1752594640070,-4239.35,0.00021152,10]
[372334340,1752594640080,-3532.8,0.00021152,10]
[372334341,1752594640091,-460.0,0.00021161,2]
[372334342,1752594640103,-460.0,0.00021161,2]
[372334343,1752594640117,-460.0,0.00021161,2]
[372334344,1752594640126,-460.0,0.00021161,2]
[372334345,1752594640136,-460.0,0.00021161,2]
[372334346,1752594640146,-460.0,0.00021161,2]
[372334347,1752594640155,-460.0,0.00021161,2]
[372334348,1752594640165,-273.22346454,0.00021161,2]
[372334349,1752594640175,-460.0,0.00021161,2]
[372334350,1752594640185,-460.0,0.00021161,2]
[372334351,1752594640195,-460.0,0.00021161,2]
[372334352,1752594640205,-460.0,0.00021161,2]
[372334353,1752594640215,-460.53415314,0.00021161,2]
[372334354,1752594640225,-460.0,0.00021161,2]
[372334355,1752594640235,-460.0,0.00021161,2]
[372334356,1752594640246,-500.0,0.00021161,2]
[372334357,1752594640256,-460.0,0.00021161,2]
[372334358,1752594640266,-460.0,0.00021161,2]
[372334359,1752594640278,-488.63836594,0.00021161,2]
[372334360,1752594640288,-500.0,0.00021161,2]
[372334361,1752594640298,-305.61239685,0.00021161,2]
[372334362,1752594640308,-500.0,0.00021161,2]
[372334363,1752594640318,-500.0,0.00021161,2]
[372334364,1752594640328,-616.27494362,0.00021161,2]
[372334365,1752594640338,-500.0,0.00021161,2]
[372334366,1752594640348,-500.0,0.00021161,2]
[372334367,1752594640358,-362.2224992,0.00021161,2]
[372334368,1752594640371,-500.0,0.00021161,2]
[372334369,1752594640382,-500.0,0.00021161,2]
[372334370,1752594640392,-500.0,0.00021161,2]
[372334371,1752594640402,-500.0,0.00021161,2]
[372334372,1752594640411,-500.0,0.00021161,2]
[372334373,1752594640421,-500.0,0.00021161,2]
[372334374,1752594640430,-500.0,0.00021161,2]
[372334375,1752594640440,-500.0,0.00021161,2]
[372334376,1752594640450,-500.0,0.00021161,2]
[372334377,1752594640459,-500.0,0.00021161,2]
[372334378,1752594640469,-500.0,0.00021161,2]
[372334379,1752594640479,-500.0,0.00021161,2]
[372334381,1752594640489,-500.0,0.00021161,2]
[372334383,1752594640499,-500.0,0.00021161,2]
[372334385,1752594640508,-500.0,0.00021161,2]
[372334387,1752594640518,-500.0,0.00021161,2]
[372334389,1752594640528,-500.0,0.00021161,2]
[372334391,1752594640537,-500.0,0.00021161,2]
[372334393,1752594640547,-500.0,0.00021161,2]
[372334395,1752594640556,-500.0,0.00021161,2]
[372334397,1752594640566,-500.0,0.00021161,2]
[372334399,1752594640576,-500.0,0.00021161,2]
[372334400,1752594640586,-500.0,0.00021161,2]
[372334401,1752594640596,-500.0,0.00021161,2]
[372334402,1752594640605,-500.0,0.00021161,2]
[372334403,1752594640618,-500.0,0.00021161,2]
[372334404,1752594640628,-500.0,0.00021161,2]
[372334405,1752594640638,-500.0,0.00021161,2]
[372334406,1752594640648,-500.0,0.00021161,2]
[372334407,1752594640657,-460.0,0.00021162,2]
[372334408,1752594640666,-460.0,0.00021162,2]
[372334410,1752594640676,-1000.0,0.00021162,2]
[372334412,1752594640685,-950.53,0.00021162,2]
[372334414,1752594640694,-460.0,0.00021162,2]
[372334416,1752594640704,-460.0,0.00021162,2]
[372334417,1752594640713,-460.0,0.00021162,2]
[372334418,1752594640723,-460.0,0.00021162,2]
[372334419,1752594640732,-460.0,0.00021162,2]
[372334420,1752594640742,-460.0,0.00021162,2]
[372334422,1752594640751,-460.0,0.00021162,2]
[372334424,1752594640761,-460.0,0.00021162,2]
[372334426,1752594640771,-460.0,0.00021162,2]
[372334428,1752594640781,-460.0,0.00021162,2]
[372334430,1752594640793,-475.35,0.00021162,2]
[372334431,1752594640805,-460.0,0.00021162,2]
[372334433,1752594640816,-460.0,0.00021162,2]
[372334436,1752594640826,-1085.33,0.00021162,2]
[372334438,1752594640835,-460.0,0.00021162,2]
[372334440,1752594640845,-460.0,0.00021162,2]
[372334442,1752594640854,-460.0,0.00021162,2]
[372334443,1752594640865,-460.0,0.00021162,2]
[372334446,1752594640875,-460.0,0.00021162,2]
[372334447,1752594640884,-460.0,0.00021162,2]
[372334450,1752594640894,-460.0,0.00021162,2]
[372334451,1752594640905,-460.0,0.00021162,2]
[372334454,1752594640915,-460.0,0.00021162,2]
[372334455,1752594640924,-460.0,0.00021162,2]
[372334458,1752594640934,-435.61887751,0.00021162,2]
[372334460,1752594640947,-24.38112249,0.00021162,2]
[372334462,1752594640956,-460.0,0.00021162,2]
[372334464,1752594640966,-460.0,0.00021162,2]
[372334466,1752594640975,-460.0,0.00021162,2]
[372334468,1752594640985,-460.0,0.00021163,2]
[372334470,1752594640994,-460.0,0.00021163,2]
[372334472,1752594641003,-460.0,0.00021163,2]
[372334474,1752594641012,-460.0,0.00021163,2]
[372334476,1752594641022,-457.38089345,0.00021163,2]
[372334477,1752594641123,-500.0,0.00021161,2]
[372334478,1752594641133,-500.0,0.00021161,2]
[372334479,1752594641143,-500.0,0.00021161,2]
[372334480,1752594641153,-500.0,0.00021161,2]
[372334481,1752594641162,-500.0,0.00021161,2]
[372334482,1752594641172,-500.0,0.00021161,2]
[372334483,1752594641181,-500.0,0.00021161,2]
[372334484,1752594641191,-500.0,0.00021161,2]
[372334485,1752594641201,-500.0,0.00021161,2]
[372334486,1752594641210,-500.0,0.00021161,2]
[372334487,1752594641220,-500.0,0.00021161,2]
[372334488,1752594641229,-189.42439259,0.00021161,2]
[372334489,1752594641241,-2.61910655,0.00021163,2]
[372334490,1752594641251,-460.0,0.00021163,2]
[372334491,1752594641260,-514.40934441,0.00021163,2]
[372334492,1752594641270,-460.0,0.00021163,2]
[372334493,1752594641280,-460.0,0.00021163,2]
[372334494,1752594641290,-460.0,0.00021163,2]
[372334495,1752594641302,-309.959,0.00021163,2]
[372334496,1752594641312,-460.0,0.00021163,2]
[372334497,1752594641322,-460.0,0.00021163,2]
[372334498,1752594641331,-460.0,0.00021163,2]
[372334499,1752594641341,-460.0,0.00021163,2]
[372334500,1752594641351,-460.0,0.00021163,2]
[372334501,1752594641363,-460.0,0.00021163,2]
[372334502,1752594641373,-460.0,0.00021163,2]
[372334503,1752594641383,-500.0,0.00021163,2]
[372334504,1752594641393,-500.0,0.00021163,2]
[372334505,1752594641402,-322.3793353,0.00021163,2]
[372334506,1752594641412,-460.0,0.00021163,2]
[372334507,1752594641534,-460.0,0.00021163,2]
[372334508,1752594641545,-460.0,0.00021163,2]
[372334509,1752594641557,-460.0,0.00021163,2]
[372334510,1752594641567,-460.0,0.00021163,2]
[372334511,1752594641577,-460.0,0.00021163,2]
[372334512,1752594641587,-460.0,0.00021163,2]
[372334513,1752594641596,-229.20875757,0.00021163,2]
[372334514,1752594641606,-460.0,0.00021163,2]
[372334515,1752594641619,-1286.5016622,0.00021164,2]
[372334516,1752594641628,-460.0,0.00021164,2]
[372334517,1752594641638,-460.0,0.00021164,2]
[372334518,1752594641648,-460.0,0.00021164,2]
[372334519,1752594641657,-460.0,0.00021164,2]
[372334520,1752594641667,-460.0,0.00021164,2]
[372334521,1752594641676,-460.0,0.00021164,2]
[372334522,1752594641689,-460.0,0.00021164,2]
[372334523,1752594641699,-460.0,0.00021164,2]
[372334524,1752594641709,-425.39290116,0.00021164,2]
[372334525,1752594641721,-460.0,0.00021164,2]
[372334526,1752594641731,-460.0,0.00021164,2]
[372334527,1752594641740,-460.0,0.00021164,2]
[372334528,1752594641750,-460.0,0.00021164,2]
[372334529,1752594641759,-460.0,0.00021164,2]
[372334530,1752594641769,-460.0,0.00021164,2]
[372334531,1752594641779,-460.0,0.00021164,2]
[372334532,1752594641788,-460.0,0.00021164,2]
[372334533,1752594641798,-460.0,0.00021164,2]
[372334534,1752594641807,-460.0,0.00021164,2]
[372334535,1752594641817,-460.0,0.00021164,2]
[372334536,1752594641826,-460.0,0.00021164,2]
[372334537,1752594641836,-460.0,0.00021164,2]
[372334538,1752594641845,-460.0,0.00021164,2]
[372334539,1752594641855,-460.0,0.00021164,2]
[372334540,1752594641868,-460.0,0.00021164,2]
[372334541,1752594641877,-460.0,0.00021164,2]
[372334542,1752594641887,-539.14168803,0.00021164,2]
[372334543,1752594641897,-460.0,0.00021164,2]
[372334544,1752594641906,-460.0,0.00021164,2]
[372334545,1752594641916,-460.0,0.00021164,2]
[372334546,1752594641926,-460.0,0.00021164,2]
[372334547,1752594641935,-460.0,0.00021164,2]
[372334548,1752594641945,-262.50994522,0.00021164,2]
[372334549,1752594641955,-460.0,0.00021164,2]
[372334550,1752594641965,-1288.42,0.00021164,2]
[372334551,1752594641976,-460.0,0.00021164,2]
[372334552,1752594641986,-500.0,0.00021164,2]
[372334553,1752594641996,-532.32917578,0.00021164,2]
[372334554,1752594642006,-460.0,0.00021164,2]
[372334555,1752594642016,-460.0,0.00021164,2]
[372334556,1752594642030,-460.0,0.00021164,2]
[372334557,1752594642039,-460.0,0.00021164,2]
[372334558,1752594642049,-460.0,0.00021164,2]
[372334559,1752594642059,-460.0,0.00021164,2]
[372334560,1752594642070,-460.0,0.00021164,2]
[372334561,1752594642080,-1149.51,0.00021164,2]
[372334562,1752594642091,-460.0,0.00021164,2]
[372334563,1752594642103,-460.0,0.00021164,2]
[372334564,1752594642115,-460.0,0.00021164,2]
[372334565,1752594642125,-460.0,0.00021164,2]
[372334566,1752594642134,-460.0,0.00021164,2]
[372334567,1752594642143,-460.0,0.00021164,2]
[372334568,1752594642153,-460.0,0.00021164,2]
[372334569,1752594642162,-317.06317034,0.00021164,2]
[372334570,1752594642171,-460.0,0.00021164,2]
[372334571,1752594642182,-460.0,0.00021164,2]
[372334572,1752594642192,-460.0,0.00021164,2]
[372334573,1752594642203,-460.0,0.00021164,2]
[372334574,1752594642213,-535.92494353,0.00021164,2]
[372334575,1752594642222,-460.0,0.00021164,2]
[372334576,1752594642232,-1000.70377879,0.00021164,2]
[372334577,1752594642242,-460.0,0.00021164,2]
[372334578,1752594642251,-460.0,0.00021164,2]
[372334579,1752594642261,-460.0,0.00021164,2]
[372334580,1752594642271,-460.0,0.00021164,2]
[372334581,1752594642280,-1240.94,0.00021164,2]
[372334582,1752594642290,-460.0,0.00021165,2]
[372334583,1752594642299,-460.0,0.00021165,2]
[372334584,1752594642310,-460.0,0.00021165,2]
[372334585,1752594642319,-460.0,0.00021165,2]
[372334586,1752594642328,-460.0,0.00021165,2]
[372334587,1752594642338,-460.0,0.00021165,2]
[372334588,1752594642348,-460.0,0.00021165,2]
[372334589,1752594642357,-460.0,0.00021165,2]
[372334590,1752594642369,-460.0,0.00021165,2]
[372334591,1752594642379,-460.0,0.00021165,2]
[372334592,1752594642388,-460.0,0.00021165,2]
[372334593,1752594642397,-460.0,0.00021165,2]
[372334594,1752594642407,-460.0,0.00021165,2]
[372334595,1752594642417,-460.0,0.00021165,2]
[372334596,1752594642426,-460.0,0.00021165,2]
[372334597,1752594642436,-95.12429683,0.00021165,2]
[372334598,1752594642531,-500.0,0.00021161,2]
[372334599,1752594642540,-500.0,0.00021161,2]
[372334600,1752594642550,-364.87570317,0.00021165,2]
[372334601,1752594642559,-460.0,0.00021165,2]
[372334602,1752594642569,-460.0,0.00021165,2]
[372334603,1752594642578,-502.25,0.00021165,2]
[372334604,1752594642588,-460.0,0.00021167,2]
[372334605,1752594642597,-460.0,0.00021167,2]
[372334606,1752594642607,-510.04701595,0.00021167,2]
[372334607,1752594642619,-500.0,0.00021173,2]
[372334608,1752594642628,-460.0,0.00021189,2]
[372334609,1752594642638,-234.81,0.00021417,3]
[372334610,1752594642647,-500.0,0.00021424,2]
[372334611,1752594642657,-500.0,0.00021424,2]
[372334612,1752594642666,-500.0,0.00021424,2]
[372334613,1752594642675,-500.0,0.00021426,2]
[372334614,1752594642684,-460.0,0.00021427,2]
[372334615,1752594642693,-460.0,0.00021427,2]
[372334616,1752594642702,-460.0,0.00021427,2]
[372334617,1752594642711,-460.0,0.00021427,2]
[372334618,1752594642720,-460.0,0.00021427,2]
[372334619,1752594642729,-460.0,0.00021427,2]
[372334620,1752594642737,-460.3324947,0.00021427,2]
[372334621,1752594642746,-460.0,0.00021427,2]
[372334622,1752594642755,-460.0,0.00021427,2]
[372334623,1752594642764,-460.23166771,0.00021427,2]
[372334624,1752594642773,-460.0,0.00021427,2]
[372334625,1752594642782,-460.0,0.00021427,2]
[372334626,1752594642791,-460.0,0.00021427,2]
[372334627,1752594642801,-460.0,0.00021427,2]
[372334628,1752594642810,-442.18712251,0.00021427,2]
[372334629,1752594642819,-460.0,0.00021427,2]
[372334630,1752594642828,-237.37799195,0.00021427,2]
[372334631,1752594642837,-460.0,0.00021427,2]
[372334632,1752594642846,-460.0,0.00021427,2]
[372334633,1752594642855,-460.0,0.00021427,2]
[372334634,1752594642867,-481.08674792,0.00021427,2]
[372334635,1752594642875,-460.0,0.00021427,2]
[372334636,1752594642884,-460.0,0.00021427,2]
[372334637,1752594642893,-460.0,0.00021427,2]
[372334638,1752594642902,-460.0,0.00021427,2]
[372334639,1752594642912,-460.0,0.00021427,2]
[372334641,1752594642921,-460.0,0.00021427,2]
[372334642,1752594642930,-194.56111932,0.00021427,2]
[372334645,1752594642942,-265.43888068,0.00021427,2]
[372334647,1752594642952,-460.66121434,0.00021427,2]
[372334649,1752594642961,-460.0,0.00021427,2]
[372334650,1752594642970,-460.0,0.00021427,2]
[372334651,1752594642979,-458.14237407,0.00021427,2]
[372334652,1752594642988,-460.0,0.00021427,2]
[372334653,1752594642997,-460.0,0.00021427,2]
[372334654,1752594643007,-460.0,0.00021427,2]
[372334655,1752594643016,-460.0,0.00021427,2]
[372334656,1752594643026,-460.0,0.00021427,2]
[372334657,1752594643040,-460.0,0.00021427,2]
[372334659,1752594643049,-460.0,0.00021427,2]
[372334660,1752594643059,-461.16747139,0.00021427,2]
[372334661,1752594643068,-460.0,0.00021427,2]
[372334662,1752594643079,-460.0,0.00021435,2]
[372334663,1752594643088,-460.0,0.00021435,2]
[372334665,1752594643098,-460.0,0.00021435,2]
[372334666,1752594643107,-460.0,0.00021435,2]
[372334667,1752594643119,-500.0,0.00021435,2]
[372334668,1752594643128,-540.0,0.00021435,2]
[372334670,1752594643138,-460.0,0.00021436,2]
[372334672,1752594643147,-950.53,0.00021436,2]
[372334674,1752594643157,-460.0,0.00021436,2]
[372334675,1752594643166,-400.27225244,0.00021436,2]
[372334676,1752594643176,-460.0,0.00021436,2]
[372334677,1752594643186,-460.0,0.00021436,2]
[372334678,1752594643195,-460.0,0.00021436,2]
[372334680,1752594643204,-460.0,0.00021436,2]
[372334681,1752594643214,-460.0,0.00021436,2]
[372334682,1752594643223,-460.0,0.00021436,2]
[372334683,1752594643233,-425.67117061,0.00021436,2]
[372334684,1752594643242,-475.35,0.00021436,2]
[372334685,1752594643251,-460.0,0.00021436,2]
[372334686,1752594643260,-460.0,0.00021436,2]
[372334687,1752594643269,-1085.33,0.00021436,2]
[372334688,1752594643279,-580.1,0.00021436,2]
[372334689,1752594643289,-460.0,0.00021436,2]
[372334690,1752594643298,-574.27,0.00021436,2]
[372334691,1752594643308,-460.0,0.00021436,2]
[372334692,1752594643318,-460.0,0.00021436,2]
[372334693,1752594643327,-460.0,0.00021436,2]
[372334694,1752594643336,-460.0,0.00021436,2]
[372334695,1752594643346,-460.0,0.00021436,2]
[372334696,1752594643355,-460.0,0.00021436,2]
[372334697,1752594643367,-359.48183714,0.00021436,2]
[372334698,1752594643376,-596.38419911,0.00021437,2]
[372334699,1752594643386,-460.0,0.00021437,2]
[372334700,1752594643396,-460.0,0.00021437,2]
[372334701,1752594643406,-460.0,0.00021437,2]
[372334702,1752594643415,-470.54155832,0.00021437,2]
[372334703,1752594643425,-374.17809554,0.00021437,2]
[372334704,1752594643435,-460.0,0.00021437,2]
[372334705,1752594643444,-266.93588895,0.00021437,2]
[372334706,1752594643456,-193.06411105,0.00021437,2]
[372334707,1752594643466,-460.0,0.00021437,2]
[372334708,1752594643476,-381.92,0.00021437,2]
[372334709,1752594643486,-460.0,0.00021437,2]
[372334710,1752594643495,-460.0,0.00021437,2]
[372334711,1752594643505,-572.26,0.00021437,2]
[372334712,1752594643514,-261.53057842,0.00021437,2]
[372334713,1752594643523,-460.0,0.00021438,2]
[372334714,1752594643532,-460.0,0.00021438,2]
[372334715,1752594643542,-460.0,0.00021438,2]
[372334716,1752594643552,-460.0,0.00021438,2]
[372334717,1752594643562,-460.0,0.00021438,2]
[372334718,1752594643571,-460.0,0.00021438,2]
[372334719,1752594643582,-460.0,0.00021438,2]
[372334720,1752594643591,-460.0,0.00021438,2]
[372334721,1752594643600,-460.0,0.00021438,2]
[372334722,1752594643610,-460.0,0.00021438,2]
[372334723,1752594643621,-232.90320506,0.00021438,2]
[372334724,1752594643633,-227.09679494,0.00021438,2]
[372334725,1752594643642,-460.0,0.00021438,2]
[372334726,1752594643652,-460.0,0.00021438,2]
[372334727,1752594643662,-460.0,0.00021438,2]